bitfinex/quotes_ETHUSD_20251011
["timestamp","ask_amount","ask_price","bid_price","bid_amount"]
[1760203615267,0.4352,3849.9,3849.2,2.59792783]
[1760203615677,0.4352,3849.9,3848.9,5.99618402]
[1760203615874,0.4352,3849.9,3849.3,2.59786963]
[1760203616247,0.001,3849.7,3849.3,2.59786963]
[1760203618458,0.001,3849.7,3849.6,0.1296]
[1760203619560,0.441,3849.7,3849.6,0.1296]
[1760203619895,0.441,3849.7,3848.6,2.598328]
[1760203619896,2.59781849,3849.4,3848.6,2.598328]
[1760203620101,3.06898076,3849.3,3848.4,1.92]
[1760203620264,2.59800992,3849.1,3847.8,2.59888767]
[1760203620597,2.59841483,3848.6,3847.7,2.59889799]
[1760203620804,0.4711,3848.5,3847.7,2.59894492]
[1760203620959,0.4711,3848.4,3847.7,2.59894492]
[1760203621162,0.4711,3848.3,3847.3,6.30446273]
[1760203621358,2.59803677,3849.1,3847.4,2.59909086]
[1760203621359,0.4711,3848.2,3847.4,2.59909086]
[1760203621558,0.4711,3848.2,3846.6,2.78717728]
[1760203621559,3.06983926,3848.1,3846.9,3.38115178]
[1760203621797,0.6336,3848.9,3847.0,2.59936312]
[1760203621798,2.59882586,3847.9,3847.0,2.59936312]
[1760203621961,0.2214,3847.8,3847.1,1.92]
[1760203622161,0.4686,3847.7,3847.2,2.59928457]
[1760203622468,0.4686,3847.6,3846.9,2.59949189]
[1760203622663,0.4686,3847.6,3847.1,2.5993008]
[1760203622860,0.4686,3847.5,3846.9,4.51949491]
[1760203623292,0.4686,3847.4,3846.9,4.51949491]
[1760203623492,0.4686,3847.3,3846.9,4.51949491]
[1760203623665,0.4686,3847.2,3847.1,1.92]
[1760203623865,2.59848176,3848.5,3847.7,2.59890239]
[1760203623866,0.4663,3848.5,3847.7,2.59890239]
[1760203624168,0.4663,3848.5,3847.8,2.59887118]
[1760203624598,0.4663,3848.5,3847.8,2.5988789]
[1760203625102,0.4663,3848.5,3847.9,2.59880851]
[1760203625264,0.4663,3848.5,3847.7,2.59889705]
[1760203625470,0.4663,3848.5,3847.8,2.59886981]
[1760203625902,0.4663,3848.5,3847.8,6.83786981]
[1760203626200,0.4663,3848.5,3847.8,2.59886981]
[1760203626890,2.59836194,3848.6,3847.8,2.59886981]
[1760203626891,0.4663,3848.4,3847.8,2.59886981]
[1760203627092,0.4663,3848.4,3847.7,4.239]
[1760203627289,0.4663,3848.3,3847.7,4.239]
[1760203627503,0.2237,3847.8,3847.7,4.239]
[1760203627702,0.69,3847.8,3847.7,4.239]
[1760203628894,0.69,3847.8,3847.0,4.239]
[1760203629093,0.4663,3847.7,3846.8,0.002]
[1760203629294,0.4663,3847.7,3847.1,2.59933321]
[1760203629595,0.4663,3847.6,3846.8,0.002]
[1760203630226,0.1296,3848.2,3847.5,0.1296]
[1760203630441,2.59862688,3848.2,3847.8,0.1296]
[1760203630596,0.4663,3848.1,3847.8,0.1296]
[1760203630909,0.4663,3848.0,3847.8,0.1296]
[1760203631117,3.06509378,3848.0,3847.8,0.1296]
[1760203631304,0.2237,3847.9,3847.8,0.1296]
[1760203631644,0.2237,3847.9,3846.9,4.239]
[1760203631645,2.59902607,3847.6,3846.9,4.239]
[1760203631932,2.59889162,3847.8,3847.5,0.1296]
[1760203632103,2.59896297,3847.7,3847.5,0.1296]
[1760203632615,0.4663,3847.6,3847.5,0.1296]
[1760203632802,0.46285622,3847.6,3847.5,0.1296]
[1760203633199,3.06187898,3847.6,3847.5,0.1296]
[1760203634634,0.46285622,3847.6,3847.5,0.1296]
[1760203636054,0.2237,3847.9,3847.5,0.1296]
[1760203636261,1.1095,3848.3,3847.8,0.1296]
[1760203636548,0.4595,3848.2,3847.8,0.1296]
[1760203637337,0.65,3848.3,3848.1,0.1296]
[1760203637512,0.65,3848.3,3848.1,2.72827761]
[1760203638920,0.65,3848.3,3848.1,0.1296]
[1760203640940,0.4595,3848.2,3848.1,0.1296]
[1760203641258,3.05811753,3848.2,3847.3,1.92]
[1760203641429,2.59880802,3848.0,3847.8,0.1296]
[1760203641759,2.82252013,3847.9,3847.8,0.1296]
[1760203641974,3.28202013,3847.9,3847.8,0.1296]
[1760203645482,0.6832,3847.9,3847.8,0.1296]
[1760203645668,3.28202013,3847.9,3847.8,0.1296]
[1760203645849,0.6832,3847.9,3847.8,0.1296]
[1760203647052,3.28202013,3847.9,3847.8,0.1296]
[1760203647232,0.6832,3847.9,3847.8,0.1296]
[1760203647560,3.28202013,3847.9,3847.8,0.1296]
[1760203648056,0.6832,3847.9,3847.8,0.1296]
[1760203653006,0.4595,3847.9,3847.8,0.1296]
[1760203653278,0.2324,3847.9,3847.8,0.1296]
[1760203653579,3.27662013,3847.9,3847.8,0.1296]
[1760203653970,0.6778,3847.9,3847.8,0.1296]
[1760203654156,3.27662013,3847.9,3847.8,0.1296]
[1760203656879,0.6778,3847.9,3847.6,0.002]
[1760203657066,0.4454,3847.8,3847.6,0.002]
[1760203657502,0.4454,3847.7,3847.6,0.002]
[1760203658108,3.04435522,3847.7,3847.6,0.002]
[1760203659207,3.67795522,3847.7,3847.6,0.002]
[1760203659378,5.59795522,3847.7,3847.6,0.002]
[1760203660290,5.93873587,3847.7,3847.6,0.002]
[1760203661200,5.59795522,3847.7,3847.6,0.002]
[1760203664192,5.15289299,3847.2,3847.1,0.002]
[1760203664408,11.90236858,3847.2,3847.1,0.002]
[1760203664718,12.35666858,3847.2,3847.1,0.002]
[1760203665620,5.60719299,3847.2,3847.1,0.002]
[1760203666191,4.97359299,3847.2,3847.1,0.002]
[1760203666398,2.3743,3847.2,3847.1,0.002]
[1760203666705,0.4543,3847.2,3847.1,0.002]
[1760203670010,3.05359299,3847.2,3847.1,0.002]
[1760203670228,0.4543,3847.2,3847.1,0.002]
[1760203671014,3.05359299,3847.2,3847.1,0.002]
[1760203672132,0.4543,3847.2,3847.1,0.002]
[1760203672498,3.05359299,3847.2,3847.1,0.002]
[1760203673833,3.68719299,3847.2,3847.1,0.002]
[1760203674035,5.60719299,3847.2,3847.1,0.002]
[1760203676599,3.0079,3847.2,3847.1,0.002]
[1760203676797,2.3743,3847.2,3847.1,0.002]
[1760203677003,0.4543,3847.2,3847.1,0.002]
[1760203677425,1.0879,3847.2,3847.1,0.002]
[1760203677904,3.68719299,3847.2,3847.1,0.002]
[1760203681431,5.60719299,3847.2,3847.1,0.002]
[1760203681955,5.71147548,3847.2,3847.1,0.002]
[1760203683067,5.60719299,3847.2,3847.1,0.002]
[1760203688562,5.60719299,3847.2,3846.8,1e-08]
[1760203688563,3.23309569,3846.9,3846.8,1e-08]
[1760203688769,21.674411,3846.9,3846.8,1e-08]
[1760203688930,22.57178874,3846.9,3846.8,1e-08]
[1760203689660,22.57178874,3846.9,3846.4,1e-08]
[1760203689661,3.23336602,3846.5,3846.4,1e-08]
[1760203689862,5.51323,3846.5,3846.4,1e-08]
[1760203690063,5.94643,3846.5,3846.4,1e-08]
[1760203690858,5.58656602,3846.5,3846.4,1e-08]
[1760203698430,3.66656602,3846.5,3846.4,1e-08]
[1760203698668,3.03296602,3846.5,3846.4,1e-08]
[1760203698871,0.4332,3846.5,3846.4,1e-08]
[1760203699170,0.5628,3846.5,3846.4,1e-08]
[1760203699335,0.4332,3846.5,3846.4,1e-08]
[1760203699739,1.0668,3846.5,3846.4,1e-08]
[1760203700072,1.0832,3846.5,3846.4,1e-08]
[1760203700771,1.7168,3846.5,3846.4,1e-08]
[1760203700958,4.31656602,3846.5,3846.4,1e-08]
[1760203701340,1.7168,3846.5,3846.4,1e-08]
[1760203701651,4.31656602,3846.5,3846.4,1e-08]
[1760203702071,4.44616602,3846.5,3846.4,1e-08]
[1760203702285,6.36616602,3846.5,3846.4,1e-08]
[1760203702789,6.59643,3846.5,3846.4,1e-08]
[1760203704985,6.23656602,3846.5,3846.4,1e-08]
[1760203709197,6.23756602,3846.5,3846.4,1e-08]
[1760203714028,4.31756602,3846.5,3846.4,1e-08]
[1760203714395,3.68396602,3846.5,3846.4,1e-08]
[1760203714599,1.0842,3846.5,3846.4,1e-08]
[1760203714825,3.68396602,3846.5,3846.4,1e-08]
[1760203715117,6.23756602,3846.5,3846.4,1e-08]
[1760203715515,5.60396602,3846.5,3846.4,1e-08]
[1760203715922,6.23756602,3846.5,3846.4,1e-08]
[1760203730138,6.59743,3846.5,3846.4,1e-08]
[1760203735028,6.23756602,3846.5,3846.4,1e-08]
[1760203739557,6.59743,3846.5,3846.4,1e-08]
[1760203742279,6.23756602,3846.5,3846.4,1e-08]
[1760203745754,3.68396602,3846.5,3846.4,1e-08]
[1760203745983,4.31756602,3846.5,3846.4,1e-08]
[1760203746154,5.60396602,3846.5,3846.4,1e-08]
[1760203746356,3.68396602,3846.5,3846.4,1e-08]
[1760203746759,4.31756602,3846.5,3846.4,1e-08]
[1760203752298,4.31756602,3846.5,3845.5,4.239]
[1760203752299,3.23478614,3844.4,3844.1,0.002]
[1760203752498,3.23478614,3844.4,3843.2,0.002]
[1760203752499,3.23519217,3843.8,3843.2,0.002]
[1760203752663,6.01910566,3843.8,3843.2,0.002]
[1760203752868,6.45010566,3843.8,3843.2,0.002]
[1760203753063,5.15525985,3843.7,3843.2,0.002]
[1760203753268,6.01917334,3843.7,3843.2,0.002]
[1760203753469,6.02223852,3843.7,3843.2,0.002]
[1760203753682,5.58425985,3843.7,3843.2,0.002]
[1760203761313,6.45203764,3843.7,3843.2,0.002]
[1760203762822,2.5536,3843.2,3842.6,0.002]
[1760203763002,5.15580146,3842.9,3842.6,0.002]
[1760203763506,5.58480146,3842.9,3842.6,0.002]
[1760203766211,5.08080146,3842.9,3842.6,0.002]
[1760203766924,5.71440146,3842.9,3842.6,0.002]
[1760203770332,5.08080146,3842.9,3842.6,0.002]
[1760203770525,5.58480146,3842.9,3842.6,0.002]
[1760203772236,2.349,3842.9,3842.6,0.002]
[1760203772436,3.03120146,3842.9,3842.6,0.002]
[1760203776032,2.60220146,3842.9,3842.6,0.002]
[1760203776231,3.25311828,3843.1,3842.8,0.1316]
[1760203776451,3.25311828,3843.1,3842.8,0.002]
[1760203776452,0.651,3843.1,3842.8,0.002]
[1760203776754,3.25306604,3843.1,3843.0,0.1296]
[1760203777313,0.651,3843.1,3843.0,0.1296]
[1760203777517,3.25306604,3843.1,3843.0,0.1296]
[1760203778227,3.68206604,3843.1,3843.0,0.1296]
[1760203778925,1.08,3843.1,3843.0,0.1316]
[1760203779338,0.651,3843.1,3843.0,0.1316]
[1760203780260,3.25306604,3843.1,3843.0,0.1316]
[1760203780571,0.651,3843.1,3843.0,0.1316]
[1760203785165,3.25306604,3843.1,3843.0,0.1316]
[1760203786755,0.651,3843.1,3843.0,0.1316]
[1760203787080,0.651,3843.1,3843.0,2.73373374]
[1760203787380,0.651,3843.1,3843.0,3.71243493]
[1760203789293,0.651,3843.1,3843.0,5.63243493]
[1760203791105,0.651,3843.1,3843.0,5.09603374]
[1760203791281,0.651,3843.1,3843.0,0.1316]
[1760203791671,0.651,3843.1,3843.0,0.002]
[1760203793985,1.0737,3843.1,3843.0,0.002]
[1760203796473,0.651,3843.1,3843.0,0.002]
[1760203798114,1.0737,3843.1,3843.0,0.002]
[1760203799981,0.651,3843.1,3843.0,0.002]
[1760203800186,1.0737,3843.1,3843.0,0.002]
[1760203800924,3.67576604,3843.1,3843.0,0.002]
[1760203801615,3.67576604,3843.1,3843.0,0.1316]
[1760203801616,4.30936604,3843.1,3843.0,0.1316]
[1760203801802,4.30936604,3843.1,3843.0,0.002]
[1760203802007,6.64411807,3843.1,3843.0,0.002]
[1760203802381,3.23580146,3842.9,3842.8,1e-08]
[1760203802583,21.2444925,3842.9,3842.8,1e-08]
[1760203802783,22.08194453,3842.9,3842.8,1e-08]
[1760203803809,5.15614007,3842.4,3842.3,1e-08]
[1760203804195,5.9935921,3842.4,3842.3,1e-08]
[1760203804793,5.57884007,3842.4,3842.3,1e-08]
[1760203805196,5.9935921,3842.4,3842.3,1e-08]
[1760203806093,5.57884007,3842.4,3842.3,1e-08]
[1760203807002,4.94524007,3842.4,3842.3,1e-08]
[1760203807817,5.57884007,3842.4,3842.3,1e-08]
[1760203808213,22.15109725,3842.4,3842.3,1e-08]
[1760203808415,22.56584928,3842.4,3842.3,1e-08]
[1760203808929,5.57095984,3842.3,3842.2,0.002]
[1760203809129,5.15647878,3841.9,3841.0,0.002]
[1760203809344,0.6336,3841.4,3841.3,1e-08]
[1760203809496,5.5715696,3841.4,3841.3,1e-08]
[1760203809698,5.9919696,3841.4,3841.3,1e-08]
[1760203809926,5.15702089,3841.1,3841.0,0.002]
[1760203810241,5.15702089,3841.1,3838.3,0.433]
[1760203810242,2.60453646,3839.5,3838.3,0.433]
[1760203810396,3.23761799,3840.3,3837.7,0.51676348]
[1760203810397,0.6301,3839.4,3838.4,0.0012]
[1760203810603,0.6336,3839.3,3838.1,0.0012]
[1760203810908,0.6336,3839.3,3838.1,2.60544837]
[1760203810909,2.60483321,3839.1,3838.1,2.60544837]
[1760203811099,0.3952,3839.0,3838.2,0.52126277]
[1760203811300,3.00005502,3839.0,3838.3,0.0016]
[1760203811512,3.00005502,3839.0,3838.3,0.0012]
[1760203811695,0.3952,3839.0,3838.9,0.1296]
[1760203811901,2.60492186,3838.9,3838.6,0.1296]
[1760203812102,0.3952,3838.8,3838.6,0.1296]
[1760203812407,0.3952,3839.3,3838.3,3.03832006]
[1760203812611,0.3952,3839.3,3838.4,0.32729201]
[1760203812806,0.2349,3839.5,3838.7,2.60499125]
[1760203813128,0.3952,3839.4,3838.2,2.60533193]
[1760203813429,2.60488847,3839.0,3838.4,0.0012]
[1760203813619,2.60488847,3839.0,3838.1,0.002]
[1760203813818,2.60502609,3838.8,3838.2,0.0016]
[1760203814002,0.3952,3838.9,3838.1,0.002]
[1760203814003,0.3952,3838.9,3838.3,0.0016]
[1760203814204,0.3952,3838.9,3838.4,0.00104]
[1760203814420,0.3952,3838.8,3838.1,0.002]
[1760203814708,0.3952,3838.8,3838.2,0.0016]
[1760203814910,0.6301,3839.5,3838.6,2.60505252]
[1760203815312,3.2346153,3839.5,3838.6,2.60505252]
[1760203815509,0.6301,3839.5,3838.7,0.02605048]
[1760203815841,0.651,3839.8,3838.9,2.60491157]
[1760203816030,0.651,3839.8,3839.2,2.60470318]
[1760203816338,0.651,3839.8,3839.6,2.60443629]
[1760203816494,0.651,3839.8,3839.6,2.60443662]
[1760203816695,0.651,3839.8,3839.7,0.0260437]
[1760203816900,0.651,3839.8,3839.0,2.60480694]
[1760203817138,0.651,3839.8,3839.1,2.89562087]
[1760203817333,0.651,3839.8,3839.1,2.60476106]
[1760203817537,0.651,3839.8,3839.0,0.433]
[1760203817904,0.651,3839.8,3839.4,2.6045182]
[1760203818236,0.651,3839.8,3839.7,2.60437013]
[1760203818445,0.651,3839.8,3839.7,2.86480714]
[1760203818634,1.0462,3839.8,3839.2,2.60466521]
[1760203818836,1.0462,3839.8,3839.0,2.60484501]
[1760203819037,1.0462,3839.8,3839.1,2.60476539]
[1760203819412,0.3952,3839.7,3838.9,0.30379116]
[1760203819614,0.3952,3839.7,3838.4,1.92]
[1760203819844,2.60483335,3839.1,3838.4,0.0012]
[1760203820144,2.60464777,3839.3,3838.1,2.86820344]
[1760203820145,2.60484925,3839.0,3838.2,0.0012]
[1760203820509,0.3952,3838.9,3838.2,2.60657915]
[1760203820710,0.3952,3838.9,3838.3,2.60529536]
[1760203820916,0.3952,3838.9,3838.4,0.0012]
[1760203821151,0.3952,3838.8,3838.4,0.0012]
[1760203821647,0.3952,3838.7,3838.4,0.0012]
[1760203821848,0.3952,3838.7,3838.3,0.0012]
[1760203822078,0.3952,3838.7,3838.2,0.0012]
[1760203822219,0.3952,3838.6,3838.2,0.0012]
[1760203822417,0.3952,3838.6,3838.5,0.1296]
[1760203823018,2.60518431,3838.5,3838.2,0.1296]
[1760203823213,2.60518431,3838.5,3838.2,0.1312]
[1760203823214,0.3952,3838.4,3838.2,0.1312]
[1760203823440,0.3952,3838.4,3838.2,0.1296]
[1760203823616,0.3952,3838.3,3838.2,0.1296]
[1760203823817,0.5248,3838.8,3838.2,0.1296]
[1760203824228,3.12983351,3838.8,3838.2,0.1296]
[1760203824642,0.5248,3838.8,3838.2,0.1296]
[1760203825022,2.60506881,3838.7,3838.2,0.1296]
[1760203825222,0.3952,3838.6,3838.2,0.1296]
[1760203825438,2.73458917,3838.8,3838.2,0.1296]
[1760203825643,0.3952,3838.5,3838.2,2.73497688]
[1760203825846,0.1296,3838.8,3838.2,3.00867457]
[1760203826046,0.1296,3838.8,3838.2,0.40329769]
[1760203826252,0.3952,3838.7,3838.2,0.1296]
[1760203826426,0.3952,3838.6,3838.2,0.1296]
[1760203826632,2.3152,3839.2,3838.3,0.0260532]
[1760203826835,0.3952,3839.2,3838.5,0.1296]
[1760203827028,0.3952,3839.2,3838.9,0.1296]
[1760203827225,0.3952,3839.1,3838.9,0.1296]
[1760203827772,0.1296,3839.5,3838.9,0.1296]
[1760203827922,0.3952,3839.6,3838.9,2.60485506]
[1760203828225,0.3952,3839.6,3839.3,0.1296]
[1760203829039,0.651,3839.8,3839.3,0.1296]
[1760203829040,1.92,3839.7,3839.3,0.1296]
[1760203829358,0.3952,3839.6,3839.3,0.1296]
[1760203829583,1.92,3839.5,3839.3,0.1296]
[1760203829767,0.3952,3839.4,3839.3,0.1296]
[1760203831966,2.60480456,3839.1,3838.1,2.60739133]
[1760203832129,3.00004501,3839.0,3838.9,0.1296]
[1760203832338,2.60502557,3838.8,3838.1,0.002]
[1760203832565,2.60504858,3838.7,3838.6,0.1296]
[1760203832733,2.60525218,3838.4,3838.3,0.1296]
[1760203833063,5.15898794,3838.2,3838.1,0.002]
[1760203833226,5.15898794,3838.2,3837.8,0.002]
[1760203833227,3.23919159,3837.9,3837.8,0.002]
[1760203833454,3.41379159,3837.9,3837.8,0.002]
[1760203833655,3.80659159,3837.9,3837.8,0.002]
[1760203834883,1.201,3837.9,3837.8,0.002]
[1760203835285,0.3906,3838.3,3837.8,0.002]
[1760203835695,0.3906,3838.2,3837.8,0.002]
[1760203835898,0.3906,3838.7,3837.8,0.002]
[1760203836084,0.3906,3838.7,3837.9,2.6055531]
[1760203836474,1.92,3839.5,3837.8,0.002]
[1760203836660,2.60520728,3838.5,3837.8,0.002]
[1760203837057,0.3906,3838.4,3837.8,0.002]
[1760203838157,2.99586102,3838.4,3837.8,0.002]
[1760203838361,0.3906,3838.4,3837.8,0.002]
[1760203839203,0.3906,3838.4,3837.8,2.60765383]
[1760203839400,0.3906,3838.4,3837.8,2.86861921]
[1760203839565,2.6045555,3839.5,3837.8,2.86861921]
[1760203839566,1.92,3838.9,3837.8,0.26296538]
[1760203839764,4.52478124,3839.1,3838.1,2.60545227]
[1760203839988,0.3906,3839.3,3837.9,0.4703]
[1760203839989,0.3906,3839.0,3838.2,2.60536143]
[1760203840319,0.3906,3839.4,3838.3,0.0260532]
[1760203840795,1.92,3839.3,3838.2,2.60538258]
[1760203840983,3.23815884,3839.5,3838.1,2.60543517]
[1760203841184,3.23815884,3839.5,3837.8,0.002]
[1760203841185,0.3906,3839.2,3838.4,2.60522976]
[1760203841370,0.3906,3839.1,3838.2,0.26054352]
[1760203841571,0.3906,3839.1,3838.1,2.60542773]
[1760203841909,2.60507624,3838.7,3837.8,0.002]
[1760203842263,0.3906,3838.6,3837.8,2.60765556]
[1760203842498,0.3906,3838.6,3837.8,0.002]
[1760203843000,0.3906,3838.6,3838.3,0.1296]
[1760203843402,2.60505333,3838.7,3838.3,0.1296]
[1760203843562,0.3906,3838.5,3838.3,0.1296]
[1760203843960,0.3906,3838.4,3838.3,0.1296]
[1760203844703,0.6336,3838.9,3838.3,0.1296]
[1760203844899,3.23851525,3838.9,3838.3,0.1296]
[1760203845068,3.62911525,3838.9,3838.3,0.1296]
[1760203846084,1.0242,3838.9,3838.3,0.1296]
[1760203846619,0.1296,3839.0,3838.3,0.1296]
[1760203846763,1.92,3839.3,3838.8,0.1296]
[1760203846962,0.3906,3839.2,3838.8,0.1296]
[1760203847166,0.1296,3839.4,3838.8,0.1296]
[1760203847589,0.1296,3839.4,3838.8,2.7345662]
[1760203847795,0.3906,3839.7,3839.2,0.1296]
[1760203848108,0.651,3839.8,3839.2,0.1296]
[1760203848109,0.3906,3839.6,3839.2,0.1296]
[1760203848520,1.2846,3839.8,3839.2,0.1296]
[1760203848697,1.0416,3839.8,3839.2,0.1296]
[1760203848899,0.651,3839.8,3839.5,0.1296]
[1760203849222,0.3906,3839.7,3839.5,0.1296]
[1760203849600,0.3906,3839.6,3839.5,0.1296]
[1760203850192,0.3906,3839.6,3838.7,2.60501337]
[1760203850392,0.3906,3839.5,3839.0,0.1296]
[1760203850828,0.3906,3839.4,3839.0,0.1296]
[1760203851025,0.3906,3839.4,3839.0,2.73444279]
[1760203851323,0.3906,3839.3,3837.8,0.002]
[1760203851640,0.6336,3839.2,3837.8,0.28902328]
[1760203851792,0.7632,3839.2,3838.6,0.1296]
[1760203852606,0.3906,3839.1,3838.6,0.1296]
[1760203852813,0.3906,3839.6,3838.6,0.02605116]
[1760203853038,0.3906,3839.6,3839.1,0.1296]
[1760203853408,0.3906,3839.6,3839.2,2.60468237]
[1760203853595,0.3906,3839.6,3839.1,0.1296]
[1760203853596,0.3906,3839.5,3839.1,2.73437498]
[1760203853796,0.3906,3839.4,3839.2,2.60469724]
[1760203854016,0.3906,3839.4,3839.1,0.1296]
[1760203854017,0.3906,3839.4,3839.1,2.73436847]
[1760203854208,0.1296,3839.7,3839.1,0.1296]
[1760203854417,0.3906,3839.3,3839.1,0.1296]
[1760203854733,0.3906,3839.2,3839.1,0.1296]
[1760203855307,0.3906,3840.0,3839.3,2.60459492]
[1760203855515,0.5202,3840.0,3839.5,2.60449573]
[1760203855722,0.5202,3840.0,3839.4,0.1296]
[1760203856111,0.1296,3840.0,3839.4,0.1296]
[1760203856350,0.3906,3839.7,3839.4,0.1296]
[1760203856825,0.1296,3840.0,3839.5,2.60449465]
[1760203857312,0.1296,3840.0,3839.4,0.1296]
[1760203857516,0.3906,3839.7,3839.4,0.1296]
[1760203857936,0.3906,3839.6,3839.4,0.1296]
[1760203858653,0.5202,3840.0,3839.4,2.7341081]
[1760203858813,0.3906,3839.7,3839.4,2.7341081]
[1760203859844,0.3906,3839.7,3839.5,2.60449238]
[1760203860041,0.3906,3839.7,3839.4,0.1296]
[1760203860218,0.3906,3839.6,3839.4,0.1296]
[1760203860668,0.1296,3840.0,3839.4,0.1296]
[1760203860960,0.3906,3840.3,3839.7,2.60437013]
[1760203861126,0.3906,3840.3,3839.7,2.73397013]
[1760203861333,0.3885,3840.7,3839.7,3.31153658]
[1760203861922,2.3085,3840.7,3839.7,3.31153658]
[1760203862323,0.3993,3840.4,3839.7,3.31153658]
[1760203862629,0.3993,3840.1,3839.7,2.73397013]
[1760203863654,0.3993,3840.1,3839.7,0.1296]
[1760203863859,1.0513,3839.8,3839.7,0.1296]
[1760203865156,0.652,3839.8,3839.7,6.97297013]
[1760203865341,0.652,3839.8,3839.7,8.36791761]
[1760203866422,0.652,3839.8,3839.7,7.93071761]
[1760203866641,0.652,3839.8,3839.7,6.97297013]
[1760203867436,1.0986,3839.8,3839.7,6.97297013]
[1760203867756,0.652,3839.8,3839.7,7.41017013]
[1760203869757,0.652,3839.8,3839.7,5.09117013]
[1760203869758,1e-08,3839.8,3839.7,5.09117013]
[1760203870060,1e-08,3839.8,3839.7,6.28463579]
[1760203872053,1e-08,3839.8,3839.7,11.15723579]
[1760203872554,1e-08,3839.8,3839.7,6.91823579]
[1760203873162,1e-08,3839.8,3839.7,9.49253765]
[1760203873460,1e-08,3839.8,3839.7,6.91823579]
[1760203873644,1e-08,3839.8,3839.7,6.28463579]
[1760203877860,1e-08,3839.8,3839.7,10.52363579]
[1760203881273,1e-08,3839.8,3839.7,3.92743579]
[1760203881445,1e-08,3839.8,3839.7,2.73397013]
[1760203882049,1e-08,3839.8,3839.7,3.17117013]
[1760203882463,1e-08,3839.8,3839.7,3.19721383]
[1760203883044,1e-08,3839.8,3839.7,5.11721383]
[1760203883246,1e-08,3839.8,3839.7,5.09117013]
[1760203883574,1e-08,3839.8,3839.7,5.86073579]
[1760203884498,1e-08,3839.8,3839.7,10.09973579]
[1760203886069,1e-08,3839.8,3839.7,9.66253579]
[1760203886277,1e-08,3839.8,3839.7,10.09973579]
[1760203886475,0.001,3840.2,3840.1,2.60409885]
[1760203886676,0.001,3840.2,3840.1,2.73369885]
[1760203887081,0.001,3840.2,3840.1,0.1296]
[1760203887082,0.445,3840.2,3840.1,0.1296]
[1760203888575,1.0786,3840.2,3839.4,2.60455869]
[1760203888873,1.0786,3840.2,3838.7,1.92]
[1760203888874,0.4409,3840.1,3838.7,1.92]
[1760203889063,0.4409,3840.1,3839.7,2.60436333]
[1760203889261,0.1392,3839.8,3838.8,0.49622936]
[1760203889454,0.4409,3840.0,3838.8,0.49622936]
[1760203889455,0.4409,3840.0,3839.7,2.60431591]
[1760203889857,0.4409,3840.0,3839.5,0.02604505]
[1760203890054,0.4409,3840.0,3839.7,2.60436504]
[1760203890271,0.4379,3839.9,3838.9,2.371]
[1760203890440,0.4379,3839.9,3839.5,2.60444981]
[1760203890647,0.4349,3839.8,3839.5,2.60444981]
[1760203890972,0.4349,3839.8,3839.6,2.60443462]
[1760203891472,0.001,3840.2,3839.5,2.60443954]
[1760203891655,0.3509,3840.1,3839.3,2.60464147]
[1760203891857,0.3509,3840.0,3839.6,2.60443101]
[1760203892064,0.001,3840.2,3839.6,2.60443101]
[1760203892065,0.227,3839.7,3839.6,2.60443101]
[1760203892279,0.5779,3839.7,3839.5,2.60449153]
[1760203892450,0.5779,3839.7,3839.6,2.60443796]
[1760203892650,0.227,3840.0,3839.6,2.60443796]
[1760203892978,0.3509,3839.9,3839.0,0.54721962]
[1760203893145,0.3509,3839.8,3839.4,2.6045595]
[1760203893346,0.3509,3839.7,3839.2,2.60465323]
[1760203893582,0.227,3840.0,3838.6,2.60506878]
[1760203893583,0.3509,3839.6,3839.4,2.60452307]
[1760203893789,0.227,3840.0,3839.0,4.23899999]
[1760203893790,0.001,3840.2,3839.6,2.60440475]
[1760203894090,0.001,3840.2,3839.5,2.60447413]
[1760203894297,0.3509,3840.1,3839.4,2.60457069]
[1760203894657,0.3509,3840.1,3838.8,0.451]
[1760203894967,0.001,3840.2,3839.8,2.6042386]
[1760203895479,0.3509,3840.1,3839.8,2.60429048]
[1760203895646,0.001,3840.2,3839.3,0.451]
[1760203895848,0.001,3840.2,3840.1,2.60409885]
[1760203897145,0.001,3840.2,3840.1,4.52409885]
[1760203898450,0.001,3840.2,3840.1,2.73369885]
[1760203899694,0.001,3840.2,3840.1,5.72912858]
[1760203899859,0.001,3840.2,3840.1,5.7030876]
[1760203900186,0.001,3840.2,3840.1,5.0578876]
[1760203900386,0.3519,3840.2,3839.6,0.002]
[1760203900572,0.3519,3840.2,3839.6,1.922]
[1760203900758,0.3519,3840.2,3839.8,2.60424801]
[1760203900964,0.3509,3840.1,3839.8,2.60424801]
[1760203901298,0.3509,3840.0,3839.8,2.60424801]
[1760203901495,0.001,3840.2,3839.8,3.12536001]
[1760203901671,0.001,3840.2,3840.1,2.60409885]
[1760203902093,0.3519,3840.2,3839.8,3.1253552]
[1760203902272,0.3509,3840.1,3839.8,2.60428743]
[1760203902468,0.3509,3840.0,3839.8,2.60428743]
[1760203902689,0.5778,3839.9,3839.6,0.002]
[1760203903294,3.18203991,3839.9,3839.6,0.002]
[1760203903608,0.5778,3839.9,3839.6,0.002]
[1760203903810,0.3579,3839.8,3839.6,0.002]
[1760203904171,0.2199,3839.9,3839.6,0.002]
[1760203904501,0.3579,3839.7,3839.6,0.002]
[1760203906004,3.59587013,3839.7,3839.6,0.002]
[1760203906698,0.9915,3839.7,3839.6,0.002]
[1760203907706,0.3579,3839.7,3839.6,0.002]
[1760203909630,3.59587013,3839.7,3839.6,0.002]
[1760203910241,0.9915,3839.7,3839.6,0.002]
[1760203910450,3.59587013,3839.7,3839.6,0.002]
[1760203911824,0.3579,3839.7,3839.6,0.002]